[Event "Fast Chess"]
[Site "ChessKid.com"]
[Date "2020.04.27"]
[Round "3"]
[White "Dai, Lana"]
[Black "Li, Patrick"]
[Result "0-1"]
[ECO "C55"]
[WhiteElo "1277"]
[BlackElo "1103"]
[Annotator "Doppelangriff"]
[PlyCount "46"]
[EventDate "2020.??.??"]
[TimeControl "900"]
[WhiteClock "0:12:31"]
[BlackClock "0:12:08"]

1. e4 {[%emt 0:00:01]} e5 {[%emt 0:00:02]} 2. Nf3 {[%emt 0:00:01]} Nc6 {
[%emt 0:00:02]} 3. Nc3 {[%emt 0:00:02]} Nf6 {[%emt 0:00:04]} 4. Bc4 {[%emt 0:
00:03]} Bc5 {[%emt 0:00:02]} 5. h3 {[%emt 0:00:05]} h6 {[%emt 0:00:09]} 6. a3 {
[%emt 0:00:02]} a6 {[%emt 0:00:11]} 7. d3 {[%emt 0:00:02]} b5 {[%emt 0:00:03]}
8. b4 {[%emt 0:00:06]} bxc4 {[%emt 0:00:17]} 9. bxc5 {[%emt 0:00:02]} cxd3 {
[%emt 0:00:02]} 10. Qxd3 {[%emt 0:00:02]} O-O {[%emt 0:00:09]} 11. Nh4 {
[%emt 0:00:09]} Qe7 {[%emt 0:00:04]} 12. Qg3 {[%emt 0:00:06]} Qxc5 {[%emt 0:00:
11]} 13. O-O {[%emt 0:00:11]} Qe7 $4 {[%emt 0:00:06]} 14. Bxh6 $4 {[%emt 0:00:
02]} Nh5 {[%emt 0:00:05]} 15. Qg4 {[%emt 0:00:09]} Qf6 {[%emt 0:00:12]} 16. Nd5
{[%emt 0:00:14]} Qxh6 {[%emt 0:00:06]} 17. Ne7+ {[%emt 0:00:02]} Nxe7 {[%emt 0:
00:05]} 18. Rae1 {[%emt 0:00:21]} d5 {[%emt 0:00:02]} 19. exd5 {[%emt 0:00:02]}
Bxg4 {[%emt 0:00:07]} 20. hxg4 {[%emt 0:00:05]} Nf6 {[%emt 0:00:08]} 21. Nf5 {
[%emt 0:00:19]} Nxf5 {[%emt 0:00:09]} 22. gxf5 {[%emt 0:00:03]} Ng4 {[%emt 0:
00:05]} 23. f3 {[%emt 0:00:44]} Qh2# {[%emt 0:00:08] WideClassyQuiz won by
checkmate} 0-1

[Event "Fast Chess"]
[Site "ChessKid.com"]
[Date "2020.04.27"]
[Round "1"]
[White "Georgiev, Maximilian"]
[Black "Rosenkranz, Benjamin"]
[Result "1-0"]
[ECO "A20"]
[WhiteElo "1406"]
[BlackElo "1159"]
[Annotator "Mattsetzen, Fesselung"]
[PlyCount "137"]
[EventDate "2020.??.??"]
[TimeControl "600"]
[WhiteClock "0:01:08"]
[BlackClock "0:03:09"]

1. c4 {[%emt 0:00:01]} e5 {[%emt 0:00:04]} 2. g3 {[%emt 0:00:01]} Nc6 {[%emt 0:
00:05]} 3. Bg2 {[%emt 0:00:01]} Bc5 {[%emt 0:00:12]} 4. e3 {[%emt 0:00:01]} Nf6
{[%emt 0:00:02]} 5. Ne2 {[%emt 0:00:02]} O-O {[%emt 0:00:05]} 6. O-O {[%emt 0:
00:02]} d6 {[%emt 0:00:03]} 7. f3 {[%emt 0:00:05]} Nh5 {[%emt 0:00:08]} 8. d3 {
[%emt 0:00:04]} Qg5 {[%emt 0:00:15]} 9. d4 {[%emt 0:00:05]} Bb6 {[%emt 0:00:05]
} 10. d5 {[%emt 0:00:08]} Ne7 {[%emt 0:00:05]} 11. f4 {[%emt 0:00:07]} Qg4 {
[%emt 0:00:10]} 12. fxe5 {[%emt 0:00:05]} dxe5 {[%emt 0:00:05]} 13. Bf3 {
[%emt 0:00:03]} Qg6 {[%emt 0:00:09]} 14. Bxh5 {[%emt 0:00:05]} Qxh5 {[%emt 0:
00:05]} 15. Nbc3 {[%emt 0:00:06]} Qh6 {[%emt 0:00:05]} 16. Rf3 {[%emt 0:00:14]}
Qh3 {[%emt 0:00:10]} 17. Kh1 {[%emt 0:00:10]} Bg4 {[%emt 0:00:20]} 18. Rf2 {
[%emt 0:00:07]} Nf5 {[%emt 0:00:16]} 19. Ng1 $4 {[%emt 0:00:04]} Bxd1 $4 {
[%emt 0:00:31]} 20. Nxh3 {[%emt 0:00:02]} Nxe3 {[%emt 0:00:02]} 21. Bxe3 {
[%emt 0:00:04]} Bxe3 {[%emt 0:00:02]} 22. Rf1 {[%emt 0:00:11]} Bg4 {[%emt 0:00:
04]} 23. Rfe1 {[%emt 0:00:12]} Bd4 {[%emt 0:00:05]} 24. Ng1 {[%emt 0:00:12]}
Rae8 {[%emt 0:00:22]} 25. a3 {[%emt 0:00:19]} f5 {[%emt 0:00:10]} 26. Rac1 {
[%emt 0:00:09]} Bf2 {[%emt 0:00:10]} 27. Rf1 {[%emt 0:00:05]} Be3 {[%emt 0:00:
05]} 28. Rce1 {[%emt 0:00:12]} Bd4 {[%emt 0:00:06]} 29. Nge2 {[%emt 0:00:08]}
Be3 {[%emt 0:00:05]} 30. Nd1 {[%emt 0:00:10]} Bc5 {[%emt 0:00:07]} 31. Nec3 {
[%emt 0:00:07]} Bh3 {[%emt 0:00:07]} 32. Rf3 {[%emt 0:00:07]} Bg4 {[%emt 0:00:
08]} 33. Rd3 {[%emt 0:00:06]} b6 {[%emt 0:00:10]} 34. Ne3 {[%emt 0:00:05]} Bh5
{[%emt 0:00:10]} 35. Rf1 {[%emt 0:00:11]} f4 {[%emt 0:00:05]} 36. gxf4 {
[%emt 0:00:05]} exf4 {[%emt 0:00:02]} 37. Nc2 {[%emt 0:00:09]} Rd8 {[%emt 0:00:
20]} 38. b4 {[%emt 0:00:08]} Be3 {[%emt 0:00:13]} 39. Nxe3 {[%emt 0:00:05]}
fxe3 {[%emt 0:00:03]} 40. Rxf8+ {[%emt 0:00:03]} Rxf8 {[%emt 0:00:03]} 41. Rxe3
{[%emt 0:00:01]} Rf1+ {[%emt 0:00:02]} 42. Kg2 {[%emt 0:00:02]} Rf8 {[%emt 0:
00:03]} 43. a4 {[%emt 0:00:09]} Rf4 {[%emt 0:00:20]} 44. Re4 {[%emt 0:00:15]}
Rf3 {[%emt 0:00:14]} 45. Ne2 {[%emt 0:00:15]} Rf8 {[%emt 0:00:04]} 46. Nf4 {
[%emt 0:00:06]} Bg4 {[%emt 0:00:07]} 47. Kg3 {[%emt 0:00:05]} Bd1 {[%emt 0:00:
05]} 48. a5 {[%emt 0:00:06]} Bc2 {[%emt 0:00:11]} 49. Re2 {[%emt 0:00:09]} Ba4
{[%emt 0:00:09]} 50. axb6 {[%emt 0:00:03]} axb6 {[%emt 0:00:04]} 51. Rd2 {
[%emt 0:00:06]} Bb3 {[%emt 0:00:17]} 52. c5 {[%emt 0:00:03]} bxc5 {[%emt 0:00:
04]} 53. bxc5 {[%emt 0:00:01]} Re8 {[%emt 0:00:12]} 54. d6 {[%emt 0:00:04]}
cxd6 {[%emt 0:00:04]} 55. cxd6 {[%emt 0:00:01]} Rd8 {[%emt 0:00:05]} 56. Ne6 {
[%emt 0:00:06]} Bxe6 {[%emt 0:00:06]} 57. Kf4 {[%emt 0:00:02]} Bf7 {[%emt 0:00:
04]} 58. Ke5 {[%emt 0:00:02]} g6 {[%emt 0:00:03]} 59. Kf6 {[%emt 0:00:05]} Rd7
{[%emt 0:00:09]} 60. h4 {[%emt 0:00:05]} h6 {[%emt 0:00:15]} 61. Rd4 {[%emt 0:
00:16]} g5 {[%emt 0:00:09]} 62. hxg5 {[%emt 0:00:03]} hxg5 {[%emt 0:00:02]} 63.
Kxg5 {[%emt 0:00:01]} Ba2 {[%emt 0:00:07]} 64. Kf6 {[%emt 0:00:05]} Kf8 {
[%emt 0:00:04]} 65. Ra4 {[%emt 0:00:07]} Rxd6+ {[%emt 0:00:05]} 66. Ke5 {
[%emt 0:00:04]} Rd2 {[%emt 0:00:02]} 67. Kf6 {[%emt 0:00:05]} Bb3 {[%emt 0:00:
05]} 68. Ra8+ {[%emt 0:00:03]} Rd8 {[%emt 0:00:07]} 69. Rxd8# {[%emt 0:00:01]
TallSnazzyBall won by checkmate} 1-0

[Event "Fast Chess"]
[Site "ChessKid.com"]
[Date "2020.04.27"]
[Round "1"]
[White "Gross, Lukas"]
[Black "Li, Tobias"]
[Result "0-1"]
[ECO "A04"]
[WhiteElo "1140"]
[BlackElo "1327"]
[PlyCount "156"]
[EventDate "2020.??.??"]
[TimeControl "600"]
[WhiteClock "0:05:18"]
[BlackClock "0:04:32"]

1. g3 {[%emt 0:00:01]} e5 {[%emt 0:00:02]} 2. Bg2 {[%emt 0:00:03]} Nc6 {
[%emt 0:00:01]} 3. Nf3 {[%emt 0:00:02]} Nf6 {[%emt 0:00:02]} 4. O-O {[%emt 0:
00:03]} Bc5 {[%emt 0:00:01]} 5. e3 {[%emt 0:00:02]} O-O {[%emt 0:00:01]} 6. c3
{[%emt 0:00:01]} d6 {[%emt 0:00:00]} 7. d4 {[%emt 0:00:02]} Bb6 {[%emt 0:00:01]
} 8. dxe5 {[%emt 0:00:01]} dxe5 {[%emt 0:00:02]} 9. Nfd2 {[%emt 0:00:06]} Bd7 {
[%emt 0:00:03]} 10. Nf3 {[%emt 0:00:02]} Bg4 {[%emt 0:00:04]} 11. h3 {[%emt 0:
00:06]} Qxd1 {[%emt 0:00:06]} 12. Rxd1 {[%emt 0:00:03]} Bh5 {[%emt 0:00:01]}
13. g4 {[%emt 0:00:03]} Bg6 {[%emt 0:00:01]} 14. b3 {[%emt 0:00:06]} h6 {
[%emt 0:00:00]} 15. Ba3 {[%emt 0:00:01]} Rfe8 {[%emt 0:00:03]} 16. g5 {[%emt 0:
00:06]} hxg5 {[%emt 0:00:05]} 17. Nxg5 {[%emt 0:00:03]} Bh5 {[%emt 0:00:05]}
18. Re1 {[%emt 0:00:09]} Rad8 {[%emt 0:00:08]} 19. c4 {[%emt 0:00:07]} Rd2 {
[%emt 0:00:05]} 20. Nxd2 {[%emt 0:00:02]} Rd8 {[%emt 0:00:10]} 21. Nb1 {
[%emt 0:00:09]} Nh7 {[%emt 0:00:23]} 22. Nc3 {[%emt 0:00:05]} Nxg5 {[%emt 0:00:
04]} 23. Nd5 {[%emt 0:00:18]} Nf3+ {[%emt 0:00:06]} 24. Bxf3 {[%emt 0:00:03]}
Bxf3 {[%emt 0:00:02]} 25. Nc3 {[%emt 0:00:10]} a6 {[%emt 0:00:21]} 26. b4 {
[%emt 0:00:04]} Na5 {[%emt 0:00:14]} 27. bxa5 {[%emt 0:00:03]} Bxa5 {[%emt 0:
00:01]} 28. Rec1 {[%emt 0:00:18]} Rd3 {[%emt 0:00:04]} 29. Nd1 {[%emt 0:00:08]}
Rxa3 {[%emt 0:00:07]} 30. Nb2 {[%emt 0:00:13]} Bc3 {[%emt 0:00:16]} 31. Rxc3 {
[%emt 0:00:16]} Rxc3 {[%emt 0:00:03]} 32. a4 {[%emt 0:00:18]} Rc2 {[%emt 0:00:
15]} 33. Nd3 {[%emt 0:00:08]} Bc6 {[%emt 0:00:19]} 34. Rf1 {[%emt 0:00:14]}
Rxc4 {[%emt 0:00:08]} 35. Nxe5 {[%emt 0:00:02]} Rxa4 {[%emt 0:00:02]} 36. Nxc6
{[%emt 0:00:01]} bxc6 {[%emt 0:00:01]} 37. Rd1 {[%emt 0:00:02]} Rh4 {[%emt 0:
00:03]} 38. Kg2 {[%emt 0:00:02]} Re4 {[%emt 0:00:03]} 39. Rd8+ {[%emt 0:00:11]}
Kh7 {[%emt 0:00:03]} 40. Rc8 {[%emt 0:00:02]} Rb4 {[%emt 0:00:01]} 41. Rxc7 {
[%emt 0:00:02]} Rb8 {[%emt 0:00:00]} 42. Rxc6 {[%emt 0:00:02]} Ra8 {[%emt 0:00:
01]} 43. Kg3 {[%emt 0:00:10]} f6 {[%emt 0:00:03]} 44. Kg4 {[%emt 0:00:02]} Kg6
{[%emt 0:00:01]} 45. Kg3 {[%emt 0:00:05]} a5 {[%emt 0:00:02]} 46. Rc1 {[%emt 0:
00:04]} a4 {[%emt 0:00:01]} 47. Ra1 {[%emt 0:00:02]} a3 {[%emt 0:00:00]} 48. h4
{[%emt 0:00:03]} Kf5 {[%emt 0:00:04]} 49. f3 {[%emt 0:00:03]} Ke5 {[%emt 0:00:
02]} 50. f4+ {[%emt 0:00:02]} Ke4 {[%emt 0:00:02]} 51. Kf2 {[%emt 0:00:04]} Kd3
{[%emt 0:00:02]} 52. Rd1+ {[%emt 0:00:02]} Kc2 {[%emt 0:00:02]} 53. Ke2 {
[%emt 0:00:03]} a2 {[%emt 0:00:01]} 54. Rd2+ {[%emt 0:00:02]} Kb3 {[%emt 0:00:
05]} 55. Rd3+ {[%emt 0:00:02]} Kc4 {[%emt 0:00:01]} 56. Rd4+ {[%emt 0:00:02]}
Kc5 {[%emt 0:00:03]} 57. Rd1 {[%emt 0:00:06]} a1=Q {[%emt 0:00:02]} 58. Rxa1 {
[%emt 0:00:03]} Rxa1 {[%emt 0:00:01]} 59. Kf3 {[%emt 0:00:02]} Rh1 {[%emt 0:00:
01]} 60. Kg4 {[%emt 0:00:01]} Rg1+ {[%emt 0:00:02]} 61. Kh5 {[%emt 0:00:03]}
Re1 {[%emt 0:00:01]} 62. Kg6 {[%emt 0:00:03]} Rxe3 {[%emt 0:00:01]} 63. Kxg7 {
[%emt 0:00:01]} f5 {[%emt 0:00:00]} 64. h5 {[%emt 0:00:01]} Rh3 {[%emt 0:00:04]
} 65. Kg6 {[%emt 0:00:02]} Kd6 {[%emt 0:00:06]} 66. h6 {[%emt 0:00:03]} Kd5 {
[%emt 0:00:03]} 67. Kg7 {[%emt 0:00:01]} Ke4 {[%emt 0:00:02]} 68. h7 {[%emt 0:
00:02]} Kxf4 {[%emt 0:00:00]} 69. h8=Q {[%emt 0:00:02]} Rxh8 {[%emt 0:00:01]}
70. Kxh8 {[%emt 0:00:02]} Ke4 {[%emt 0:00:01]} 71. Kg7 {[%emt 0:00:01]} f4 {
[%emt 0:00:01]} 72. Kg6 {[%emt 0:00:01]} f3 {[%emt 0:00:00]} 73. Kg5 {[%emt 0:
00:00]} f2 {[%emt 0:00:01]} 74. Kg4 {[%emt 0:00:01]} f1=Q {[%emt 0:00:02]} 75.
Kg3 {[%emt 0:00:01]} Qf3+ {[%emt 0:00:03]} 76. Kh2 {[%emt 0:00:03]} Qg4 {
[%emt 0:00:02]} 77. Kh1 {[%emt 0:00:02]} Kf3 {[%emt 0:00:01]} 78. Kh2 {[%emt 0:
00:02]} Qg2# {[%emt 0:00:00] OnlyHungryKiwi won by checkmate} 0-1

[Event "Fast Chess"]
[Site "ChessKid.com"]
[Date "2020.04.27"]
[Round "2"]
[White "Li, Patrick"]
[Black "Georgiev, Maximilian"]
[Result "1/2-1/2"]
[ECO "B27"]
[WhiteElo "1109"]
[BlackElo "1401"]
[PlyCount "40"]
[EventDate "2020.??.??"]
[TimeControl "600"]
[WhiteClock "0:08:23"]
[BlackClock "0:07:45"]

1. e4 {[%emt 0:00:02]} c5 {[%emt 0:00:01]} 2. Nf3 {[%emt 0:00:03]} g6 {[%emt 0:
00:02]} 3. Bc4 {[%emt 0:00:03]} Bg7 {[%emt 0:00:04]} 4. Ng5 {[%emt 0:00:05]} e6
{[%emt 0:00:01]} 5. Qf3 {[%emt 0:00:05]} Nf6 {[%emt 0:00:09]} 6. O-O {[%emt 0:
00:05]} O-O {[%emt 0:00:03]} 7. h3 {[%emt 0:00:17]} Nc6 {[%emt 0:00:08]} 8. Nc3
{[%emt 0:00:12]} Nd4 {[%emt 0:00:03]} 9. Qd3 {[%emt 0:00:11]} Ne8 {[%emt 0:00:
07]} 10. Nb5 {[%emt 0:00:16]} Nxb5 {[%emt 0:00:06]} 11. Bxb5 {[%emt 0:00:02]}
Qxg5 {[%emt 0:00:04]} 12. Qb3 {[%emt 0:00:05]} a6 {[%emt 0:00:06]} 13. d4 {
[%emt 0:00:02]} axb5 {[%emt 0:00:03]} 14. Bxg5 {[%emt 0:00:03]} cxd4 {[%emt 0:
00:05]} 15. Be7 {[%emt 0:00:17]} Nf6 {[%emt 0:00:18]} 16. Bxf8 {[%emt 0:00:07]}
Kxf8 {[%emt 0:00:01]} 17. Qxb5 {[%emt 0:00:04]} Nxe4 {[%emt 0:00:04]} 18. Rfe1
{[%emt 0:00:06]} Nf6 {[%emt 0:00:05]} 19. Red1 {[%emt 0:00:07]} Nh5 {[%emt 0:
00:04]} 20. Rxd4 {[%emt 0:00:03]} Bxd4 {[%emt 0:00:03] Game drawn by agreement}
1/2-1/2

[Event "Fast Chess"]
[Site "ChessKid.com"]
[Date "2020.04.27"]
[Round "3"]
[White "Georgiev, Maximilian"]
[Black "Li, Tobias"]
[Result "1-0"]
[ECO "A30"]
[WhiteElo "1408"]
[BlackElo "1326"]
[PlyCount "109"]
[EventDate "2020.??.??"]
[TimeControl "600"]
[WhiteClock "0:06:25"]
[BlackClock "0:07:04"]

1. c4 {[%emt 0:00:02]} c5 {[%emt 0:00:02]} 2. g3 {[%emt 0:00:01]} Nc6 {[%emt 0:
00:01]} 3. Bg2 {[%emt 0:00:01]} e5 {[%emt 0:00:03]} 4. e3 {[%emt 0:00:03]} d6 {
[%emt 0:00:01]} 5. Ne2 {[%emt 0:00:02]} Nf6 {[%emt 0:00:01]} 6. O-O {[%emt 0:
00:02]} Be7 {[%emt 0:00:04]} 7. Nbc3 {[%emt 0:00:01]} O-O {[%emt 0:00:00]} 8.
a3 {[%emt 0:00:01]} a6 {[%emt 0:00:08]} 9. d3 {[%emt 0:00:04]} Bf5 {[%emt 0:00:
07]} 10. e4 {[%emt 0:00:02]} Bg6 {[%emt 0:00:05]} 11. Bg5 {[%emt 0:00:08]} h5 {
[%emt 0:00:02]} 12. b3 {[%emt 0:00:06]} h4 {[%emt 0:00:07]} 13. Bxh4 {[%emt 0:
00:04]} Bh5 {[%emt 0:00:02]} 14. Bg5 {[%emt 0:00:07]} Nd4 {[%emt 0:00:37]} 15.
Nxd4 {[%emt 0:00:02]} Bxd1 {[%emt 0:00:04]} 16. Raxd1 {[%emt 0:00:05]} exd4 {
[%emt 0:00:04]} 17. Ne2 {[%emt 0:00:04]} Re8 {[%emt 0:00:10]} 18. Nf4 {[%emt 0:
00:03]} Nd7 {[%emt 0:00:06]} 19. Bxe7 {[%emt 0:00:04]} Qxe7 {[%emt 0:00:02]}
20. Nd5 {[%emt 0:00:03]} Qd8 {[%emt 0:00:03]} 21. Bh3 {[%emt 0:00:04]} Re5 {
[%emt 0:00:08]} 22. Bxd7 {[%emt 0:00:07]} Qxd7 {[%emt 0:00:01]} 23. h4 {
[%emt 0:00:05]} Qh3 {[%emt 0:00:06]} 24. Rfe1 {[%emt 0:00:10]} Rae8 {[%emt 0:
00:11]} 25. Nc7 {[%emt 0:00:13]} Rc8 {[%emt 0:00:03]} 26. Nd5 {[%emt 0:00:05]}
b5 {[%emt 0:00:07]} 27. cxb5 {[%emt 0:00:04]} axb5 {[%emt 0:00:01]} 28. a4 {
[%emt 0:00:03]} bxa4 {[%emt 0:00:03]} 29. bxa4 {[%emt 0:00:02]} Ra8 {[%emt 0:
00:01]} 30. Ra1 {[%emt 0:00:03]} Qg4 {[%emt 0:00:09]} 31. Kg2 {[%emt 0:00:03]}
f5 {[%emt 0:00:07]} 32. exf5 {[%emt 0:00:03]} Rxe1 {[%emt 0:00:02]} 33. Rxe1 {
[%emt 0:00:03]} Qxf5 {[%emt 0:00:01]} 34. Ne7+ {[%emt 0:00:01]} Kf7 {[%emt 0:
00:05]} 35. Nxf5 {[%emt 0:00:02]} Rxa4 {[%emt 0:00:01]} 36. Nxd6+ {[%emt 0:00:
02]} Kf6 {[%emt 0:00:04]} 37. f4 {[%emt 0:00:02]} Ra3 {[%emt 0:00:01]} 38. Rd1
{[%emt 0:00:06]} Ra2+ {[%emt 0:00:01]} 39. Kh3 {[%emt 0:00:03]} Ra6 {[%emt 0:
00:01]} 40. Ne4+ {[%emt 0:00:05]} Kf5 {[%emt 0:00:06]} 41. Nxc5 {[%emt 0:00:03]
} Ra5 {[%emt 0:00:01]} 42. Nb3 {[%emt 0:00:03]} Rb5 {[%emt 0:00:02]} 43. Nxd4+
{[%emt 0:00:01]} Kf6 {[%emt 0:00:02]} 44. Nxb5 {[%emt 0:00:01]} g5 {[%emt 0:00:
05]} 45. hxg5+ {[%emt 0:00:01]} Kg6 {[%emt 0:00:01]} 46. d4 {[%emt 0:00:02]}
Kh5 {[%emt 0:00:01]} 47. d5 {[%emt 0:00:00]} Kg6 {[%emt 0:00:01]} 48. d6 {
[%emt 0:00:01]} Kf7 {[%emt 0:00:03]} 49. d7 {[%emt 0:00:01]} Kg6 {[%emt 0:00:
01]} 50. d8=Q {[%emt 0:00:02]} Kf5 {[%emt 0:00:02]} 51. Rd5+ {[%emt 0:00:04]}
Ke4 {[%emt 0:00:01]} 52. Re5+ {[%emt 0:00:05]} Kf3 {[%emt 0:00:02]} 53. Qd3+ {
[%emt 0:00:01]} Kf2 {[%emt 0:00:01]} 54. Re2+ {[%emt 0:00:01]} Kf1 {[%emt 0:00:
05]} 55. Qd1# {[%emt 0:00:01] TallSnazzyBall won by checkmate} 1-0

[Event "Fast Chess"]
[Site "ChessKid.com"]
[Date "2020.04.27"]
[Round "3"]
[White "Li, Patrick"]
[Black "Gross, Lukas"]
[Result "0-1"]
[ECO "B06"]
[WhiteElo "1102"]
[BlackElo "1148"]
[PlyCount "30"]
[EventDate "2020.??.??"]
[TimeControl "600"]
[WhiteClock "0:08:43"]
[BlackClock "0:07:44"]

1. e4 {[%emt 0:00:01]} g6 {[%emt 0:00:04]} 2. Nf3 {[%emt 0:00:01]} Bg7 {
[%emt 0:00:03]} 3. Bc4 {[%emt 0:00:06]} Nh6 {[%emt 0:00:04]} 4. Ng5 {[%emt 0:
00:04]} O-O {[%emt 0:00:05]} 5. O-O {[%emt 0:00:06]} e6 {[%emt 0:00:04]} 6. Nf3
{[%emt 0:00:08]} d5 {[%emt 0:00:14]} 7. exd5 {[%emt 0:00:03]} exd5 {[%emt 0:00:
02]} 8. Bb5 {[%emt 0:00:06]} b6 {[%emt 0:00:05]} 9. Re1 {[%emt 0:00:15]} a6 {
[%emt 0:00:06]} 10. Bd3 {[%emt 0:00:05]} Re8 {[%emt 0:00:04]} 11. Rxe8+ {
[%emt 0:00:10]} Qxe8 {[%emt 0:00:04]} 12. Ng5 {[%emt 0:00:48]} Bb7 {[%emt 0:00:
09]} 13. Qe2 {[%emt 0:00:07]} Qc6 {[%emt 0:00:05]} 14. Nc3 {[%emt 0:00:10]} d4
{[%emt 0:00:02]} 15. Nb5 {[%emt 0:00:06]} Qxg2# {[%emt 0:00:06] RosyPopularArm
won by checkmate} 0-1

[Event "Fast Chess"]
[Site "ChessKid.com"]
[Date "2020.04.28"]
[Round "1"]
[White "Georgiev, Maximilian"]
[Black "Sasse, Gabriel"]
[Result "1-0"]
[ECO "A02"]
[WhiteElo "1407"]
[BlackElo "1258"]
[Annotator "eingestellte Figuren"]
[PlyCount "95"]
[EventDate "2020.??.??"]
[TimeControl "300+50"]
[WhiteClock "0:05:40"]
[BlackClock "0:06:28"]

1. f4 {[%emt 0:00:48]} e5 {[%emt 0:00:46]} 2. fxe5 {[%emt 0:00:47]} Nc6 {
[%emt 0:00:46]} 3. Nf3 {[%emt 0:00:48]} Bc5 {[%emt 0:00:49]} 4. e3 {[%emt 0:00:
48]} Nh6 {[%emt 0:00:49]} 5. Be2 {[%emt 0:00:47]} Qf6 $4 {[%emt 0:00:58]} 6. d4
$4 {[%emt 0:00:50]} Qf5 {[%emt 0:00:49]} 7. dxc5 {[%emt 0:00:49]} Nb4 {[%emt 0:
00:47]} 8. O-O {[%emt 0:00:48]} Nxc2 {[%emt 0:00:49]} 9. Nh4 {[%emt 0:00:50]}
Qe4 {[%emt 0:00:51]} 10. Bd3 {[%emt 0:00:50]} Qxh4 {[%emt 0:00:48]} 11. Bxc2 {
[%emt 0:00:48]} Ng4 {[%emt 0:00:47]} 12. h3 {[%emt 0:00:50]} Nxe5 {[%emt 0:00:
55]} 13. b3 {[%emt 0:00:53]} O-O {[%emt 0:00:49]} 14. Bb2 {[%emt 0:00:47]} Ng6
{[%emt 0:00:50]} 15. Qf3 {[%emt 0:00:53]} d6 {[%emt 0:00:54]} 16. cxd6 {
[%emt 0:00:48]} cxd6 {[%emt 0:00:48]} 17. Ba3 {[%emt 0:00:49]} Ne5 {[%emt 0:00:
53]} 18. Qf4 {[%emt 0:00:53]} Qxf4 {[%emt 0:00:54]} 19. exf4 {[%emt 0:00:46]}
Nd7 {[%emt 0:00:54]} 20. Bxd6 {[%emt 0:00:48]} Re8 {[%emt 0:00:47]} 21. Nc3 {
[%emt 0:00:49]} Nb6 {[%emt 0:00:47]} 22. Rfe1 {[%emt 0:00:50]} Rxe1+ {[%emt 0:
00:49]} 23. Rxe1 {[%emt 0:00:47]} Bd7 {[%emt 0:00:50]} 24. Bd3 {[%emt 0:00:51]}
h6 {[%emt 0:01:02]} 25. a4 {[%emt 0:00:50]} Be6 {[%emt 0:00:50]} 26. a5 {
[%emt 0:00:50]} Nd5 {[%emt 0:00:46]} 27. Bc4 {[%emt 0:00:49]} Nxc3 {[%emt 0:00:
49]} 28. Bxe6 {[%emt 0:00:49]} Re8 {[%emt 0:00:52]} 29. Bxf7+ {[%emt 0:00:49]}
Kxf7 {[%emt 0:00:50]} 30. Rxe8 {[%emt 0:00:47]} Kxe8 {[%emt 0:00:47]} 31. Be5 {
[%emt 0:00:47]} g6 {[%emt 0:00:48]} 32. Bxc3 {[%emt 0:00:47]} Ke7 {[%emt 0:00:
49]} 33. g4 {[%emt 0:00:47]} Ke6 {[%emt 0:00:46]} 34. Bd4 {[%emt 0:00:49]} a6 {
[%emt 0:00:48]} 35. b4 {[%emt 0:00:47]} Kd5 {[%emt 0:00:48]} 36. Bf2 {[%emt 0:
00:48]} Ke4 {[%emt 0:00:47]} 37. Bg3 {[%emt 0:00:48]} Kf3 {[%emt 0:00:49]} 38.
Kh2 {[%emt 0:00:46]} Ke3 {[%emt 0:00:53]} 39. f5 {[%emt 0:00:46]} gxf5 {
[%emt 0:00:47]} 40. gxf5 {[%emt 0:00:46]} Ke4 {[%emt 0:00:46]} 41. f6 {[%emt 0:
00:46]} Kd4 {[%emt 0:00:47]} 42. f7 {[%emt 0:00:46]} Kc4 {[%emt 0:00:47]} 43.
f8=Q {[%emt 0:00:46]} Kb3 {[%emt 0:00:47]} 44. Qf3+ {[%emt 0:00:48]} Kxb4 {
[%emt 0:00:46]} 45. Kg2 {[%emt 0:00:47]} Kxa5 {[%emt 0:00:47]} 46. Be1+ {
[%emt 0:00:47]} Ka4 {[%emt 0:00:47]} 47. Qc3 {[%emt 0:00:48]} b5 {[%emt 0:00:
47]} 48. Qb4# {[%emt 0:00:47] TallSnazzyBall won by checkmate} 1-0

[Event "Fast Chess"]
[Site "ChessKid.com"]
[Date "2020.04.28"]
[Round "1"]
[White "Xu, Yuening"]
[Black "Li, Tobias"]
[Result "1-0"]
[ECO "C50"]
[WhiteElo "1258"]
[BlackElo "1326"]
[Annotator "einzügiger Einsteller"]
[PlyCount "75"]
[EventDate "2020.??.??"]
[TimeControl "300+50"]
[WhiteClock "0:04:28"]
[BlackClock "0:04:09"]

1. e4 {[%emt 0:00:49]} e5 {[%emt 0:00:49]} 2. Nf3 {[%emt 0:00:47]} Nc6 {
[%emt 0:00:48]} 3. Nc3 {[%emt 0:00:47]} Nf6 {[%emt 0:00:50]} 4. Bc4 {[%emt 0:
00:48]} Bc5 {[%emt 0:00:51]} 5. O-O {[%emt 0:00:50]} O-O {[%emt 0:00:47]} 6. d3
{[%emt 0:00:50]} d6 {[%emt 0:00:48]} 7. h3 {[%emt 0:00:47]} h6 {[%emt 0:00:50]}
8. Bd2 {[%emt 0:00:47]} Bd7 {[%emt 0:00:53]} 9. Qe2 {[%emt 0:00:49]} Qe7 {
[%emt 0:00:48]} 10. a3 {[%emt 0:00:59]} a6 {[%emt 0:00:49]} 11. b4 {[%emt 0:00:
49]} Ba7 {[%emt 0:00:50]} 12. Be3 {[%emt 0:00:54]} Bxe3 {[%emt 0:00:49]} 13.
Qxe3 {[%emt 0:00:47]} Be6 {[%emt 0:00:52]} 14. Bxe6 {[%emt 0:00:49]} Qxe6 {
[%emt 0:00:47]} 15. d4 {[%emt 0:00:48]} exd4 {[%emt 0:00:49]} 16. Nxd4 {
[%emt 0:00:49]} Rfe8 $4 {[%emt 0:01:03]} 17. Nxe6 {[%emt 0:00:50]} Rxe6 {
[%emt 0:00:48]} 18. Qf4 {[%emt 0:01:11]} Nd4 {[%emt 0:00:52]} 19. Qd2 {[%emt 0:
00:54]} Nc6 {[%emt 0:00:54]} 20. Rfe1 {[%emt 0:00:52]} Rd8 {[%emt 0:00:55]} 21.
Qd3 {[%emt 0:00:54]} Rde8 {[%emt 0:00:53]} 22. Nd5 {[%emt 0:00:56]} Nxd5 {
[%emt 0:00:48]} 23. Qxd5 {[%emt 0:00:56]} b5 {[%emt 0:01:07]} 24. Qxc6 {
[%emt 0:00:54]} f5 {[%emt 0:00:50]} 25. Qd5 {[%emt 0:00:59]} Kh7 {[%emt 0:00:
50]} 26. c3 {[%emt 0:00:57]} fxe4 {[%emt 0:00:51]} 27. f3 {[%emt 0:01:01]} Re5
{[%emt 0:00:56]} 28. Qd4 {[%emt 0:00:50]} d5 {[%emt 0:00:52]} 29. fxe4 {
[%emt 0:00:49]} dxe4 {[%emt 0:00:52]} 30. Re3 {[%emt 0:00:47]} c6 {[%emt 0:00:
53]} 31. Rae1 {[%emt 0:00:48]} R5e7 {[%emt 0:00:51]} 32. Rxe4 {[%emt 0:00:48]}
Rxe4 {[%emt 0:00:47]} 33. Rxe4 {[%emt 0:00:47]} Rf8 {[%emt 0:00:47]} 34. Qc5 {
[%emt 0:00:53]} Kh8 {[%emt 0:00:48]} 35. Qxc6 {[%emt 0:00:48]} Kg8 {[%emt 0:00:
52]} 36. Qxa6 {[%emt 0:00:49]} Rd8 {[%emt 0:00:53]} 37. Re1 {[%emt 0:00:55]}
Rd1 {[%emt 0:00:45]} 38. Rxd1 {[%emt 0:00:47] SlimPresentLaptop won by
resignation} 1-0